fUST/lending_fUST_20260127
["ID","MTS","AMOUNT","RATE_DAILY","PERIOD"]
[403661513,1769452239570,-500.0,8.219e-05,2]
[403661514,1769452239579,-500.0,8.219e-05,2]
[403661515,1769452239589,-500.0,8.219e-05,2]
[403661516,1769452239598,-150.0,8.219e-05,2]
[403661517,1769452239608,-500.0,8.219e-05,2]
[403661518,1769452239618,-500.0,8.219e-05,2]
[403661519,1769452239628,-293.44993338,8.219e-05,2]
[403661520,1769452239638,-500.0,8.219e-05,2]
[403661521,1769452239648,-500.0,8.219e-05,2]
[403661522,1769452239661,-500.0,8.219e-05,2]
[403661523,1769452239670,-500.0,8.219e-05,2]
[403661524,1769452239679,-500.0,8.219e-05,2]
[403661525,1769452239690,-256.613,8.332e-05,2]
[403661526,1769452239702,-500.0,8.333e-05,2]
[403661527,1769452239712,-648.21135568,8.333e-05,2]
[403661528,1769452239721,-500.0,8.356e-05,2]
[403661529,1769452239732,-500.0,8.356e-05,2]
[403661530,1769452239741,-150.0,8.356e-05,2]
[403661531,1769452239750,-167.91373532,8.356e-05,2]
[403661532,1769452239759,-500.0,8.356e-05,2]
[403661533,1769452239768,-500.0,8.356e-05,2]
[403661534,1769452239777,-500.0,8.356e-05,2]
[403661535,1769452239786,-500.0,8.356e-05,2]
[403661536,1769452239796,-500.0,8.356e-05,2]
[403661537,1769452239805,-150.0,8.356e-05,2]
[403661538,1769452239814,-500.0,8.356e-05,2]
[403661539,1769452239823,-500.0,8.356e-05,2]
[403661540,1769452239833,-500.0,8.356e-05,2]
[403661541,1769452239842,-500.0,8.356e-05,2]
[403661542,1769452239852,-500.0,8.356e-05,2]
[403661543,1769452239861,-500.0,8.356e-05,2]
[403661544,1769452239871,-17410.73477926,8.367e-05,2]
[403661545,1769452239881,-500.0,8.493e-05,2]
[403661546,1769452239890,-500.0,8.493e-05,2]
[403661547,1769452239899,-150.0,8.493e-05,2]
[403661548,1769452239908,-500.0,8.493e-05,2]
[403661549,1769452239918,-203.37170978,8.493e-05,2]
[403661550,1769452239927,-500.0,8.493e-05,2]
[403661551,1769452239936,-500.0,8.493e-05,2]
[403661552,1769452239946,-500.0,8.493e-05,2]
[403661553,1769452239956,-200.98832221,8.493e-05,2]
[403661554,1769452239966,-500.0,8.493e-05,2]
[403661555,1769452239975,-500.0,8.493e-05,2]
[403661556,1769452239985,-500.0,8.493e-05,2]
[403661557,1769452239994,-264.59981825,8.493e-05,2]
[403661558,1769452240004,-500.0,8.493e-05,2]
[403661559,1769452240013,-500.0,8.493e-05,2]
[403661560,1769452240022,-500.0,8.493e-05,2]
[403661561,1769452240032,-500.0,8.63e-05,2]
[403661562,1769452240041,-158.24791449,8.63e-05,2]
[403661563,1769452240051,-500.0,8.63e-05,2]
[403661564,1769452240060,-582.25572152,8.63e-05,2]
[403661566,1769452240069,-500.0,8.63e-05,2]
[403661567,1769452240079,-450.66953665,8.63e-05,2]
[403661568,1769452240088,-500.0,8.63e-05,2]
[403661569,1769452240097,-500.0,8.63e-05,2]
[403661570,1769452240107,-500.0,8.63e-05,2]
[403661571,1769452240116,-207.53367083,8.63e-05,2]
[403661572,1769452240125,-500.0,8.63e-05,2]
[403661573,1769452240135,-450.0,8.63e-05,2]
[403661574,1769452240144,-587.0,8.756e-05,2]
[403661575,1769452240154,-2139.0,8.756e-05,2]
[403661576,1769452240163,-167.0,8.756e-05,2]
[403661577,1769452240172,-500.0,8.767e-05,2]
[403661578,1769452240181,-500.0,8.767e-05,2]
[403661579,1769452240191,-500.0,8.767e-05,2]
[403661580,1769452240203,-500.0,8.767e-05,2]
[403661581,1769452240212,-500.0,8.767e-05,2]
[403661582,1769452240222,-502.62334924,8.767e-05,2]
[403661583,1769452240233,-500.0,8.767e-05,2]
[403661585,1769452240243,-500.0,8.767e-05,2]
[403661587,1769452240252,-500.0,8.904e-05,2]
[403661589,1769452240262,-500.0,8.904e-05,2]
[403661591,1769452240272,-220.18654939,8.904e-05,2]
[403661592,1769452240280,-150.0,8.904e-05,2]
[403661593,1769452240290,-150.95054583,8.904e-05,2]
[403661594,1769452240299,-500.0,8.904e-05,2]
[403661595,1769452240308,-864.0,8.931e-05,2]
[403661596,1769452240318,-359.64894018,9.006e-05,2]
[403661597,1769452240327,-500.0,9.041e-05,2]
[403661598,1769452240337,-500.0,9.041e-05,2]
[403661599,1769452240346,-500.0,9.178e-05,2]
[403661600,1769452240356,-500.0,9.178e-05,2]
[403661601,1769452240366,-339.65547154,9.271e-05,2]
[403661602,1769452240375,-500.0,9.315e-05,2]
[403661603,1769452240385,-500.0,9.315e-05,2]
[403661604,1769452240395,-500.0,9.452e-05,2]
[403661606,1769452240405,-500.0,9.452e-05,2]
[403661607,1769452240415,-500.0,9.589e-05,2]
[403661608,1769452240424,-500.0,9.589e-05,2]
[403661609,1769452240434,-823.0,9.631e-05,2]
[403661610,1769452240443,-500.0,9.726e-05,2]
[403661611,1769452240456,-1000.0,9.824e-05,2]
[403661612,1769452240467,-500.0,9.863e-05,2]
[403661613,1769452240476,-500.0,0.0001,2]
[403661614,1769452240485,-188.54129581,0.0001,2]
[403661615,1769452240495,-5154.66727389,0.0001,2]
[403661616,1769452240505,-2389.77736106,0.0001,2]
[403661617,1769452240514,-465.41821725,0.00010137,2]
[403661618,1769452240524,-1152.0,0.00010594,2]
[403661619,1769452240533,-425.15890815,0.00010618,2]
[403661620,1769452240543,-1000.0,0.00010806,2]
[403661621,1769452240552,-244.0,0.00010806,2]
[403661622,1769452240562,-999.0,0.00010959,2]
[403661623,1769452240572,-414.51064292,0.00011006,2]
[403661624,1769452240582,-300.41429824,0.00011187,2]
[403661625,1769452240591,-1613.0,0.00011654,2]
[403661626,1769452240600,-1000.0,0.00011887,2]
[403661627,1769452240610,-492.0,0.00011887,2]
[403661628,1769452240619,-500.0,0.00012055,2]
[403661629,1769452240629,-150.0,0.00012055,2]
[403661630,1769452240638,-150.0,0.00012055,2]
[403661631,1769452240649,-201.4653447,0.00012055,2]
[403661632,1769452240660,-500.0,0.00012055,2]
[403661633,1769452240669,-500.0,0.00012055,2]
[403661634,1769452240679,-500.0,0.00012055,2]
[403661635,1769452240689,-150.0,0.00012055,2]
[403661636,1769452240699,-150.0,0.00012055,2]
[403661637,1769452240708,-174.55748242,0.00012055,2]
[403661638,1769452240717,-284.11423251,0.00012055,2]
[403661639,1769452240727,-156.12772674,0.00012146,2]
[403661640,1769452240738,-542.45970376,0.00012192,2]
[403661641,1769452240747,-150.0,0.00012192,2]
[403661642,1769452240757,-150.0,0.00012192,2]
[403661643,1769452240767,-500.0,0.00012192,2]
[403661644,1769452240776,-500.0,0.00012192,2]
[403661645,1769452240786,-500.0,0.00012192,2]
[403661646,1769452240795,-150.0,0.00012192,2]
[403661647,1769452240805,-206.35919753,0.00012192,2]
[403661648,1769452240815,-267.0,0.00012329,2]
[403661649,1769452240825,-222.5,0.00012329,2]
[403661650,1769452240834,-185.41,0.00012329,2]
[403661651,1769452240843,-154.51,0.00012329,2]
[403661652,1769452240852,-772.58,0.00012329,2]
[403661653,1769452240862,-200.0,0.00012329,2]
[403661654,1769452240871,-200.0,0.00012329,2]
[403661655,1769452240880,-500.0,0.00012329,2]
[403661656,1769452240889,-500.0,0.00012329,2]
[403661657,1769452240899,-400.0,0.00012329,2]
[403661658,1769452240908,-276.5968545,0.00012329,2]
[403661659,1769452240918,-500.0,0.00012466,2]
[403661660,1769452241074,-500.0,0.00012466,2]
[403661661,1769452241084,-300.81623099,0.00012603,2]
[403661662,1769452241093,-223.92590858,0.00012603,2]
[403661663,1769452241103,-2258.0,0.00012819,2]
[403661664,1769452241114,-1821.46643833,0.000129,2]
[403661665,1769452241124,-1821.46643826,0.000129,2]
[403661666,1769452241136,-150.0,0.00012999,2]
[403661667,1769452241145,-500.0,0.00012999,2]
[403661668,1769452241155,-469.37234566,0.00013006,2]
[403661669,1769452241164,-1000.0,0.00013075,2]
[403661670,1769452241174,-791.0,0.00013075,2]
[403661671,1769452241183,-150.0,0.00013136,2]
[403661672,1769452241192,-500.0,0.00013136,2]
[403661673,1769452241204,-503.5144957,0.00013273,2]
[403661674,1769452241214,-500.0,0.00013273,2]
[403661675,1769452241223,-500.0,0.00013273,2]
[403661676,1769452241232,-500.0,0.00013273,2]
[403661677,1769452241241,-502.99035624,0.00013273,2]
[403661678,1769452241251,-500.0,0.00013273,2]
[403661679,1769452241260,-500.0,0.00013273,2]
[403661680,1769452241270,-500.0,0.00013273,2]
[403661681,1769452241279,-500.0,0.00013273,2]
[403661682,1769452241289,-500.0,0.00013273,2]
[403661683,1769452241298,-502.4998524,0.00013273,2]
[403661684,1769452241307,-500.92401321,0.00013273,2]
[403661685,1769452241317,-500.0,0.00013273,2]
[403661686,1769452241326,-501.2459449,0.00013273,2]
[403661687,1769452241336,-500.0,0.00013273,2]
[403661688,1769452241345,-162.48916646,0.00013273,2]
[403661689,1769452241355,-386.99327385,0.00013273,2]
[403661690,1769452241365,-200.77708875,0.00013273,2]
[403661691,1769452241374,-256.61357181,0.00013273,2]
[403661692,1769452241384,-1041.66666667,0.00013451,2]
[403661693,1769452241393,-9400.80949001,0.00013466,2]
[403661694,1769452241402,-300.0,0.00013673,2]
[403661695,1769452241412,-477.12811929,0.00013698,2]
[403661696,1769452241421,-154.20486829,0.00013698,2]
[403661697,1769452241430,-626.122152,0.00013698,2]
[403661698,1769452241439,-600.53,0.00013698,2]
[403661699,1769452241449,-600.53,0.00013698,2]
[403661700,1769452241458,-600.53,0.00013698,2]
[403661701,1769452241467,-600.53,0.00013698,2]
[403661702,1769452241476,-600.53,0.00013698,2]
[403661703,1769452241485,-600.53,0.00013698,2]
[403661704,1769452241494,-600.53,0.00013698,2]
[403661705,1769452241504,-600.53,0.00013698,2]
[403661706,1769452241513,-600.53,0.00013698,2]
[403661707,1769452241522,-600.53,0.00013698,2]
[403661708,1769452241532,-600.53,0.00013698,2]
[403661709,1769452241541,-600.53,0.00013698,2]
[403661710,1769452241550,-600.53,0.00013698,2]
[403661711,1769452241560,-600.53,0.00013698,2]
[403661712,1769452241569,-600.53,0.00013698,2]
[403661713,1769452241578,-600.53,0.00013698,2]
[403661714,1769452241588,-600.53,0.00013698,2]
[403661715,1769452241597,-600.53,0.00013698,2]
[403661716,1769452241606,-600.53,0.00013698,2]
[403661717,1769452241615,-600.53,0.00013698,2]
[403661718,1769452241624,-600.53,0.00013698,2]
[403661719,1769452241634,-600.53,0.00013698,2]
[403661720,1769452241642,-600.53,0.00013698,2]
[403661721,1769452241652,-600.74568546,0.00013698,2]
[403661722,1769452241665,-500.0,0.00013698,2]
[403661723,1769452241674,-500.0,0.00013698,2]
[403661724,1769452241683,-500.0,0.00013698,2]
[403661725,1769452241694,-500.0,0.00013698,2]
[403661726,1769452241704,-500.0,0.00013698,2]
[403661727,1769452241713,-500.0,0.00013698,2]
[403661728,1769452241723,-500.0,0.00013698,2]
[403661729,1769452241732,-282.825542,0.00013698,2]
[403661730,1769452241742,-500.0,0.00013698,2]
[403661731,1769452241751,-500.0,0.00013698,2]
[403661732,1769452241760,-500.0,0.00013698,2]
[403661733,1769452241770,-953.37907197,0.00013698,2]
[403661734,1769452241780,-1000.0,0.00013699,2]
[403661735,1769452241789,-501.29959982,0.00013699,2]
[403661736,1769452241798,-158.2,0.00013699,2]
[403661737,1769452241807,-500.0,0.00013699,2]
[403661738,1769452241816,-228.02056982,0.00013699,2]
[403661739,1769452241826,-288.2,0.00013699,2]
[403661740,1769452241835,-300.01916849,0.00013699,2]
[403661741,1769452241845,-500.0,0.00013699,2]
[403661742,1769452241854,-500.0,0.00013699,2]
[403661743,1769452241863,-500.0,0.00013699,2]
[403661744,1769452241873,-500.0,0.00013699,2]
[403661745,1769452241882,-500.0,0.00013699,2]
[403661746,1769452241891,-2000.0,0.00013699,7]
[403661747,1769452241900,-171.30774651,0.00013699,2]
[403661748,1769452241909,-1000.0,0.00013821,2]
[403661749,1769452241919,-504.66008898,0.00013821,2]
[403661750,1769452241929,-500.0,0.00013821,2]
[403661751,1769452241938,-500.0,0.00013821,2]
[403661752,1769452241948,-1000.0,0.00013821,2]
[403661753,1769452241957,-1000.0,0.00013821,2]
[403661754,1769452241966,-1000.0,0.00013821,2]
[403661755,1769452241975,-1000.0,0.00013821,2]
[403661756,1769452241985,-1000.0,0.00013973,2]
[403661757,1769452241994,-100000.0,0.0001399,2]
[403661758,1769452242004,-1022.0,0.00014101,2]
[403661759,1769452242014,-600.0,0.00014221,2]
[403661760,1769452242023,-1000.0,0.00014247,2]
[403661761,1769452242034,-1000.0,0.00014247,2]
[403661762,1769452242043,-1000.0,0.00014247,2]
[403661763,1769452242054,-1000.0,0.00014247,2]
[403661764,1769452242064,-1500.0,0.00014368,2]
[403661765,1769452242074,-1500.0,0.00014368,2]
[403661766,1769452242083,-1500.0,0.00014368,2]
[403661767,1769452242093,-1500.0,0.00014368,2]
[403661768,1769452242103,-1443.77363094,0.00014368,2]
[403661769,1769452242112,-1000.0,0.00014383,2]
[403661770,1769452242122,-1000.0,0.00014383,2]
[403661771,1769452242131,-1166.90309853,0.00014384,2]
[403661772,1769452242142,-900.0,0.00014768,2]
[403661773,1769452242151,-954.33550312,0.00014795,2]
[403661774,1769452242160,-603.99181188,0.00014795,2]
[403661775,1769452242170,-1500.0,0.00014795,2]
[403661776,1769452242179,-1461.62464944,0.00014795,2]
[403661777,1769452242188,-159.62665952,0.00014807,2]
[403661778,1769452242198,-511.58105016,0.0001489,2]
[403661779,1769452242208,-1821.46643826,0.00014898,2]
[403661780,1769452242217,-595.81313505,0.000149,2]
[403661781,1769452242226,-2000.0,0.00014916,2]
[403661782,1769452242234,-2000.0,0.00014916,2]
[403661783,1769452242243,-2000.0,0.00014916,2]
[403661784,1769452242253,-2000.0,0.00014916,2]
[403661785,1769452242263,-1020.44694379,0.00015,2]
[403661786,1769452242272,-580.47140307,0.00015,2]
[403661787,1769452242281,-78769.91693024,0.00015,2]
[403661788,1769452242291,-24385.87077918,0.00015,2]
[403661789,1769452242300,-151.21168241,0.00015,2]
[403661790,1769452242310,-524.2340484,0.00015006,2]
[403661791,1769452242321,-1099.536109,0.00015068,2]
[403661792,1769452242331,-2000.0,0.00015274,7]
[403661793,1769452242340,-1200.0,0.00015316,2]
[403661794,1769452242350,-1719.7,0.00015342,2]
[403661795,1769452242359,-10000.0,0.00015342,2]
[403661796,1769452242369,-8280.3,0.00015342,2]
[403661797,1769452242379,-2000.0,0.00015342,2]
[403661798,1769452242389,-8604.0647855,0.00015364,2]
[403661799,1769452242399,-1534323.68356244,0.000154,2]
[403661800,1769452242408,-2500.0,0.00015464,2]
[403661801,1769452242418,-2500.0,0.00015464,2]
[403661802,1769452242427,-2500.0,0.00015464,2]
[403661803,1769452242436,-2500.0,0.00015464,2]
[403661804,1769452242447,-5000.0,0.0001564,2]
[403661805,1769452242456,-1000.0,0.00015821,2]
[403661806,1769452242466,-1000.0,0.00015821,2]
[403661807,1769452242476,-579.0,0.00015821,2]
[403661808,1769452242486,-2500.0,0.0001589,2]
[403661809,1769452242495,-3000.0,0.00016012,2]
[403661810,1769452242505,-1975.94196246,0.00016012,2]
[403661811,1769452242514,-2055.45,0.00016158,2]
[403661812,1769452242523,-2150.0,0.00016234,2]
[403661813,1769452242532,-418.0,0.00016234,2]
[403661814,1769452242541,-179.0,0.00016234,2]
[403661815,1769452242550,-250.0,0.00016438,2]
[403661816,1769452242560,-3000.0,0.00016438,2]
[403661817,1769452242569,-179.91004498,0.00016488,2]
[403661818,1769452242578,-500.0,0.0001656,2]
[403661819,1769452242588,-21582.27495747,0.00016836,2]
[403661820,1769452242597,-2000.0,0.00016849,7]
[403661821,1769452242611,-3500.0,0.00016986,2]
[403661822,1769452242624,-298.46,0.00017,2]
[403661823,1769452242637,-19257.14969804,0.00017,2]
[403661824,1769452242655,-579.09575114,0.00017006,2]
[403661825,1769452242668,-501.27029717,0.00017117,5]
[403661826,1769452242680,-1000.0,0.00017403,2]
[403661827,1769452242693,-1000.0,0.00017403,2]
[403661828,1769452242708,-1000.0,0.00017403,2]
[403661829,1769452242720,-8604.06478544,0.00017518,2]
[403661830,1769452242733,-4000.0,0.00017534,2]
[403661831,1769452242744,-300.0,0.000176,2]
[403661832,1769452242757,-4110.89,0.00017626,2]
[403661833,1769452242768,-150.0,0.00017808,2]
[403661834,1769452242780,-500.0,0.00018,2]
[403661835,1769452242792,-500.0,0.00018,2]
[403661836,1769452242803,-1553.143611,0.00018,2]
[403661837,1769452242815,-26566.35578582,0.00018,2]
[403661838,1769452242827,-4500.0,0.00018082,2]
[403661839,1769452242838,-301.7262602,0.00018356,2]
[403661840,1769452242850,-184.03,0.00018379,2]
[403661841,1769452242862,-1032.93341515,0.00018425,7]
[403661842,1769452242874,-1099.536109,0.00018493,2]
[403661843,1769452242886,-1000.0,0.000185,2]
[403661844,1769452242897,-3061.20479703,0.0001863,2]
[403661845,1769452242908,-12481.92086342,0.000187,2]
[403661846,1769452242926,-21590.59692259,0.000187,2]
[403661847,1769452242937,-5000.0,0.00018768,2]
[403661848,1769452242951,-1821.46643826,0.00018778,2]
[403661849,1769452242964,-319.0,0.00018795,3]
[403661850,1769452242976,-981.40788391,0.0001882,7]
[403661851,1769452242988,-303.10001603,0.000189,2]
[403661852,1769452242998,-200.03849225,0.00019,2]
[403661853,1769452243008,-26.35299984,0.00019,2]
[403661854,1769452243021,-973.64700016,0.00019,2]
[403661855,1769452243033,-2603.49,0.00019,2]
[403661856,1769452243043,-11690.08223327,0.00019,2]
[403661857,1769452243058,-1287.85525209,0.00019,2]
[403661858,1769452243125,-396.0,8.119e-05,2]
[403661877,1769452246864,-5000.0,8.038e-05,2]
[403661878,1769452246886,-3820.84326165,8.119e-05,2]
[403662065,1769452720258,500.56490676,0.00034847,120]
[403662109,1769452798510,500.0,0.00034701,120]
[403662110,1769452798749,500.0,0.00034701,120]
[403662111,1769452799216,500.0,0.00034701,120]
[403662136,1769452866672,500.0,0.00034701,120]
[403662137,1769452866999,500.0,0.00034701,120]
[403662138,1769452867254,500.0,0.00034701,120]
[403662139,1769452867494,500.0,0.00034701,120]
[403662140,1769452867730,225.62207504,0.00034701,120]
[403662218,1769453164626,1120.0,6.639e-05,2]
[403662239,1769453232150,-190.43411657,6.927e-05,2]
[403662274,1769453363082,-1027.9214791,6.927e-05,2]
[403662275,1769453363110,-3781.64440433,6.927e-05,2]
[403662276,1769453363131,-263.33617315,6.962e-05,2]
[403662277,1769453363151,-673.23759923,6.997e-05,2]
[403662282,1769453431602,-5000.0,6.927e-05,2]
[403662283,1769453431612,-518.0,6.927e-05,2]
[403662284,1769453431622,-868.51880157,6.997e-05,2]
[403662285,1769453431631,-300.0,7.065e-05,2]
[403662286,1769453431641,-300.0,7.065e-05,2]
[403662287,1769453431654,-300.0,7.065e-05,2]
[403662289,1769453431664,-300.0,7.065e-05,2]
[403662290,1769453431673,-300.0,7.065e-05,2]
[403662291,1769453431683,-300.0,7.065e-05,2]
[403662292,1769453431692,-300.0,7.065e-05,2]
[403662293,1769453431701,-300.0,7.065e-05,2]
[403662294,1769453431711,-300.0,7.065e-05,2]
[403662295,1769453431721,-300.0,7.065e-05,2]
[403662296,1769453431730,-300.0,7.065e-05,2]
[403662297,1769453431740,-300.0,7.065e-05,2]
[403662298,1769453431750,-1200.0,7.117e-05,2]
[403662299,1769453431761,-3578.8388737,7.118e-05,2]
[403662300,1769453431771,-323.0,7.829e-05,2]
[403662301,1769453431782,-300.0,7.956e-05,2]
[403662302,1769453431792,-300.0,7.956e-05,2]
[403662303,1769453431803,-300.0,7.956e-05,2]
[403662304,1769453431812,-205.291,7.957e-05,2]
[403662305,1769453431822,-108414.02044617,8.018e-05,2]
[403662342,1769453437777,-300.0,7.065e-05,2]
[403662343,1769453437788,-300.0,7.065e-05,2]
[403662344,1769453437798,-300.0,7.065e-05,2]
[403662345,1769453437808,-593816.60740808,8.018e-05,2]
[403662346,1769453437830,-2893.99,8.018e-05,2]
[403662347,1769453437841,-863.683,8.018e-05,2]
[403662348,1769453437853,-5489.74042291,8.018e-05,2]
[403662349,1769453437867,-1402.16200482,8.018e-05,2]
[403662455,1769453445776,-1468.81534326,7.938e-05,2]
[403662456,1769453445788,-660.112334,7.938e-05,2]
[403662457,1769453445799,-2041.08499773,7.938e-05,2]
[403662458,1769453445811,-829.98732501,7.938e-05,2]
[403662459,1769453445819,-24294.53486261,8.018e-05,2]
[403662461,1769453445830,-568.54451647,8.018e-05,2]
[403662470,1769453446042,-164.79730007,8.018e-05,2]
[403662473,1769453446059,-3566.81084808,8.018e-05,2]
[403662476,1769453490071,162.0223203,0.00034729,120]
[403662477,1769453490444,162.0223203,0.00034729,120]
[403662478,1769453591358,500.0,0.00034729,120]
[403662479,1769453591671,500.0,0.00034729,120]
[403662480,1769453591932,500.0,0.00034729,120]
[403662481,1769453592167,441.03059812,0.00034729,120]
[403662482,1769453609905,162.02232029,0.00034729,120]
[403662483,1769453612535,500.40497092,0.00034729,120]
[403662697,1769454168393,501.66818651,0.00034693,120]
[403662698,1769454170245,500.76304653,0.00034693,120]
[403662699,1769454172105,501.85762825,0.00034693,120]
[403662874,1769454415273,500.0,0.00034693,120]
[403662875,1769454415507,501.50085085,0.00034693,120]
[403662877,1769454453003,500.0,0.00034693,120]
[403662878,1769454456736,339.78672031,0.00034693,120]
[403662879,1769454464926,500.0,0.00034693,120]
[403662880,1769454465476,500.0,0.00034693,120]
[403662881,1769454465522,500.0,0.00034693,120]
[403662882,1769454465662,638.68603968,0.00034693,120]
[403662884,1769454521837,298.84976461,0.00034693,120]
[403662956,1769454631795,-300.0,7.912e-05,2]
[403662957,1769454631805,-300.0,7.912e-05,2]
[403662958,1769454631814,-1200.0,7.912e-05,2]
[403662959,1769454631825,-531.0,7.912e-05,2]
[403662960,1769454631834,-50000.0,7.913e-05,2]
[403662961,1769454631844,-223.09467014,7.914e-05,2]
[403662962,1769454631853,-65644.22878603,7.915e-05,2]
[403662969,1769454637920,-500.0,7.913e-05,2]
[403662970,1769454637930,-500.0,7.913e-05,2]
[403662971,1769454637940,-500.0,7.913e-05,2]
[403662972,1769454637949,-500.0,7.913e-05,2]
[403662973,1769454637959,-500.0,7.913e-05,2]
[403662974,1769454637968,-300.96224095,7.913e-05,2]
[403662975,1769454637977,-239.05503259,7.913e-05,2]
[403662976,1769454637990,-260.94496741,7.913e-05,2]
[403662977,1769454638000,-500.0,7.913e-05,2]
[403662978,1769454638010,-500.0,7.913e-05,2]
[403662979,1769454638019,-329.3598241,7.913e-05,2]
[403662980,1769454638037,-170.6401759,7.913e-05,2]
[403662981,1769454638047,-500.0,7.913e-05,2]
[403662982,1769454638057,-500.0,7.913e-05,2]
[403662983,1769454638068,-104.95290583,7.913e-05,2]
[403662984,1769454638087,-395.04709417,7.913e-05,2]
[403662985,1769454638097,-500.0,7.913e-05,2]
[403662986,1769454638107,-500.0,7.913e-05,2]
[403662987,1769454638118,-500.0,7.913e-05,2]
[403662988,1769454638128,-500.0,7.913e-05,2]
[403662989,1769454638138,-500.0,7.913e-05,2]
[403662990,1769454638149,-500.0,7.913e-05,2]
[403662991,1769454638159,-500.0,7.913e-05,2]
[403662992,1769454638169,-500.0,7.913e-05,2]
[403662993,1769454638179,-500.0,7.913e-05,2]
[403662994,1769454638189,-500.0,7.913e-05,2]
[403662995,1769454638199,-329.20978322,7.913e-05,2]
[403662996,1769454638209,-500.0,7.913e-05,2]
[403662997,1769454638219,-500.0,7.913e-05,2]
[403662998,1769454638229,-500.0,7.913e-05,2]
[403662999,1769454638238,-500.0,7.913e-05,2]
[403663000,1769454638248,-500.0,7.913e-05,2]
[403663001,1769454638258,-500.0,7.913e-05,2]
[403663002,1769454638268,-182.87196146,7.913e-05,2]
[403663003,1769454638278,-500.0,7.913e-05,2]
[403663004,1769454638287,-500.0,7.913e-05,2]
[403663005,1769454638300,-500.0,7.913e-05,2]
[403663006,1769454638310,-500.0,7.913e-05,2]
[403663007,1769454638319,-500.0,7.913e-05,2]
[403663008,1769454638330,-500.0,7.913e-05,2]
[403663009,1769454638340,-500.0,7.913e-05,2]
[403663010,1769454638349,-500.0,7.913e-05,2]
[403663011,1769454638359,-500.0,7.913e-05,2]
[403663012,1769454638368,-500.0,7.913e-05,2]
[403663013,1769454638380,-500.0,7.913e-05,2]
[403663014,1769454638390,-500.0,7.913e-05,2]
[403663015,1769454638400,-500.0,7.913e-05,2]
[403663016,1769454638410,-500.0,7.913e-05,2]
[403663017,1769454638420,-393.25929923,7.913e-05,2]
[403663018,1769454638430,-500.0,7.913e-05,2]
[403663019,1769454638439,-500.0,7.913e-05,2]
[403663020,1769454638449,-500.0,7.913e-05,2]
[403663021,1769454638458,-500.0,7.913e-05,2]
[403663022,1769454638468,-500.0,7.913e-05,2]
[403663023,1769454638478,-500.0,7.913e-05,2]
[403663024,1769454638487,-500.0,7.913e-05,2]
[403663025,1769454638498,-500.0,7.913e-05,2]
[403663026,1769454638506,-510.53084851,7.913e-05,2]
[403663027,1769454638516,-500.0,7.913e-05,2]
[403663028,1769454638526,-500.0,7.913e-05,2]
[403663029,1769454638535,-500.0,7.913e-05,2]
[403663030,1769454638546,-500.0,7.913e-05,2]
[403663031,1769454638556,-500.0,7.913e-05,2]
[403663032,1769454638566,-500.0,7.913e-05,2]
[403663033,1769454638576,-500.0,7.913e-05,2]
[403663034,1769454638587,-500.0,7.913e-05,2]
[403663035,1769454638597,-500.0,7.913e-05,2]
[403663036,1769454638606,-500.0,7.913e-05,2]
[403663037,1769454638616,-350.42903071,7.913e-05,2]
[403663038,1769454638626,-459.69716444,7.913e-05,2]
[403663039,1769454638637,-500.0,7.913e-05,2]
[403663040,1769454638647,-500.0,7.913e-05,2]
[403663041,1769454638658,-500.0,7.913e-05,2]
[403663042,1769454638668,-500.0,7.913e-05,2]
[403663043,1769454638678,-500.0,7.913e-05,2]
[403663044,1769454638688,-500.0,7.913e-05,2]
[403663045,1769454638698,-500.0,7.913e-05,2]